[Event "RUS-ch Men Rapid 2019"]
[Site "Sochi"]
[Date "2019.10.16"]
[Round "10.20"]
[White "Shubin, Kirill"]
[Black "Khegay, Dmitriy"]
[Result "1/2-1/2"]
[ECO "B00"]
[WhiteElo "2416"]
[BlackElo "2509"]
[Annotator "ChessBase"]
[PlyCount "107"]
[EventDate "2019.10.15"]
[EventType "swiss"]
[EventCountry "RUS"]
[SourceTitle "playchess.com"]
[Source "ChessBase"]
[SourceQuality "1"]
[TimeControl "900+10"]

1. e4 {[%emt 0:00:00]} Nc6 {[%emt 0:00:00]} 2. Nf3 {[%emt 0:00:00]} d6 {[%emt 0:00:00]} 3. d4 {[%emt 0:00:03]} Nf6 {[%emt 0:00:00]} 4. Nc3 {[%emt 0:00:04]} g6 {[%emt 0:00:00]} 5. h3 {[%emt 0:00:08]} Bg7 {[%emt 0:00:00]} 6. Be3 {[%emt 0:00:01]} O-O {[%emt 0:00:01]} 7. Qd2 {[%emt 0:00:01]} e5 {[%emt 0:00:02]} 8. dxe5 {[%emt 0:00:13]} Nxe5 {[%emt 0:00:02]} 9. Nxe5 {[%emt 0:00:08]} dxe5 {[%emt 0:00:01]} 10. O-O-O {[%emt 0:00:03]} Be6 {[%emt 0:00:38]} 11. Qxd8 {[%emt 0:00:23]} Rfxd8 {[%emt 0:00:02]} 12. Be2 {[%emt 0:00:02]} a6 {[%emt 0:00:09]} 13. Bf3 {[%emt 0:00:21]} h6 {[%emt 0:01:28]} 14. g4 {[%emt 0:00:52]} Bf8 {[%emt 0:00:13]} 15. g5 {[%emt 0:00:24]} Rxd1+ {[%emt 0:00:39]} 16. Bxd1 {[%emt 0:00:36]} hxg5 {[%emt 0:01:59]} 17. Bxg5 {[%emt 0:00:02]} Nh7 {[%emt 0:00:51]} 18. Be3 {[%emt 0:00:03]} Bb4 {[%emt 0:00:09]} 19. Nd5 {[%emt 0:00:56]} Bxd5 {[%emt 0:00:22]} 20. exd5 {[%emt 0:00:01]} b6 {[%emt 0:00:24]} 21. c4 {[%emt 0:00:16]} Bc5 {[%emt 0:00:03]} 22. Bxc5 {[%emt 0:00:31]} bxc5 {[%emt 0:00:01]} 23. Re1 {[%emt 0:00:30]} f6 {[%emt 0:03:20]} 24. Re3 {[%emt 0:00:14]} Kf7 {[%emt 0:00:13]} 25. Ra3 {[%emt 0:00:58]} a5 {[%emt 0:00:01]} 26. h4 {[%emt 0:01:18]} Ke7 {[%emt 0:00:05]} 27. Rg3 {[%emt 0:01:31]} Nf8 {[%emt 0:02:10]} 28. Ba4 {[%emt 0:01:44]} f5 {[%emt 0:01:24]} 29. Bc6 {[%emt 0:01:25]} Ra6 {[%emt 0:00:01]} 30. h5 {[%emt 0:01:43]} Kf6 {[%emt 0:01:07]} 31. hxg6 {[%emt 0:00:40]} Nxg6 {[%emt 0:00:01]} 32. Rh3 {[%emt 0:00:26]} Nf4 {[%emt 0:01:15]} 33. Rh7 {[%emt 0:00:25]} Nd3+ {[%emt 0:00:01]} 34. Kd2 {[%emt 0:00:29]} Nxf2 {[%emt 0:00:10]} 35. Rxc7 {[%emt 0:00:05]} Ne4+ {[%emt 0:00:28]} 36. Ke3 {[%emt 0:00:04]} Rb6 {[%emt 0:00:41]} 37. Bb5 {[%emt 0:00:38]} Rb8 {[%emt 0:00:01]} 38. Rc6+ {[%emt 0:00:06]} Kg5 {[%emt 0:00:05]} 39. Re6 {[%emt 0:00:16]} Nf6 {[%emt 0:01:21]} 40. d6 {[%emt 0:00:44]} f4+ {[%emt 0:00:47]} 41. Ke2 {[%emt 0:00:26]} e4 {[%emt 0:00:25]} 42. Re5+ {[%emt 0:00:52]} Kh4 {[%emt 0:00:10]} 43. Rf5 {[%emt 0:00:09]} Nh5 {[%emt 0:00:43]} 44. Rf7 {[%emt 0:00:19]} Kg3 {[%emt 0:00:10]} 45. d7 {[%emt 0:00:16]} f3+ {[%emt 0:00:13]} 46. Ke3 {[%emt 0:00:06]} Kg2 {[%emt 0:00:12]} 47. Bc6 {[%emt 0:00:28]} Ng3 {[%emt 0:00:13]} 48. Bxe4 {[%emt 0:00:22]} Nxe4 {[%emt 0:00:01]} 49. Kxe4 {[%emt 0:00:01]} f2 {[%emt 0:00:01]} 50. Rg7+ {[%emt 0:00:26]} Kh2 {[%emt 0:00:19]} 51. Rf7 {[%emt 0:00:22]} Kg2 {[%emt 0:00:02]} 52. Rg7+ {[%emt 0:01:05]} Kh2 {[%emt 0:00:01]} 53. Rf7 {[%emt 0:00:01]} Kg1 {[%emt 0:00:01]} 54. Rg7+ {[%emt 0:00:06]} 1/2-1/2

[Event "RUS-ch Men Rapid 2019"]
[Site "Sochi"]
[Date "2019.10.16"]
[Round "10.21"]
[White "Korchmar, Vasiliy"]
[Black "Yatzenko, Anton"]
[Result "0-1"]
[ECO "D20"]
[WhiteElo "2434"]
[BlackElo "2383"]
[Annotator "NA"]
[PlyCount "58"]
[EventDate "2019.10.15"]
[EventType "swiss"]
[EventCountry "RUS"]
[SourceTitle "playchess.com"]
[Source "ChessBase"]
[SourceQuality "1"]
[TimeControl "900+10"]

1. d4 {[%emt 0:00:00]} d5 {[%emt 0:00:00]} 2. c4 {[%emt 0:00:00]} dxc4 {[%emt 0:00:00]} 3. e3 {[%emt 0:00:00]} e5 {[%emt 0:00:00]} 4. Bxc4 {[%emt 0:00:00]} exd4 {[%emt 0:00:00]} 5. exd4 {[%emt 0:00:01]} Bd6 {[%emt 0:00:00]} 6. Nf3 {[%emt 0:00:11]} Nf6 {[%emt 0:00:00]} 7. Qe2+ {[%emt 0:00:03]} Qe7 {[%emt 0:00:00]} 8. Qxe7+ {[%emt 0:00:03]} Bxe7 {[%emt 0:00:23]} 9. O-O {[%emt 0:00:07]} O-O {[%emt 0:00:07]} 10. Nc3 {[%emt 0:00:03]} a6 {[%emt 0:00:24]} 11. Re1 {[%emt 0:00:12]} Bd6 {[%emt 0:00:02]} 12. Bg5 {[%emt 0:00:05]} Nbd7 {[%emt 0:00:41]} 13. Ne5 {[%emt 0:00:22]} Nb6 {[%emt 0:00:47]} 14. Bb3 {[%emt 0:00:09]} Be6 {[%emt 0:00:48]} 15. Bxf6 {[%emt 0:02:53]} gxf6 {[%emt 0:00:01]} 16. Nd3 {[%emt 0:00:03]} Bxb3 {[%emt 0:02:01]} 17. axb3 {[%emt 0:00:01]} Rad8 {[%emt 0:01:07]} 18. g3 {[%emt 0:05:16]} Kg7 {[%emt 0:00:36]} 19. Nc5 {[%emt 0:03:01]} Bxc5 {[%emt 0:00:32]} 20. dxc5 {[%emt 0:00:02]} Nd7 {[%emt 0:00:01]} 21. c6 {[%emt 0:02:49]} Ne5 {[%emt 0:00:26]} 22. Kg2 {[%emt 0:01:30]} Nxc6 23. Ne4 Nb4 {[%emt 0:02:33]} 24. Rec1 {[%emt 0:00:19]} Rfe8 {[%emt 0:04:05]} 25. Rc4 {[%emt 0:00:01]} Nd3 {[%emt 0:00:26]} 26. Nc3 {[%emt 0:00:44]} c6 {[%emt 0:00:27]} 27. Rg4+ {[%emt 0:01:02]} Kh8 {[%emt 0:00:03]} 28. Nd1 {[%emt 0:00:30]} Re1 {[%emt 0:00:23]} 29. Rb1 {[%emt 0:00:01]} Ne5 {[%emt 0:00:10]} 0-1

[Event "RUS-ch Men Rapid 2019"]
[Site "Sochi"]
[Date "2019.10.16"]
[Round "10.22"]
[White "Gurvich, Vitaly"]
[Black "Pogromsky, Mikhail"]
[Result "1/2-1/2"]
[ECO "A50"]
[WhiteElo "2278"]
[BlackElo "2411"]
[Annotator "NA"]
[PlyCount "83"]
[EventDate "2019.10.15"]
[EventType "swiss"]
[EventCountry "RUS"]
[SourceTitle "playchess.com"]
[Source "ChessBase"]
[SourceQuality "1"]
[TimeControl "900+10"]

1. d4 {[%emt 0:00:00]} Nf6 {[%emt 0:00:00]} 2. c4 {[%emt 0:00:00]} Nc6 {[%emt 0:00:12]} 3. Nc3 {[%emt 0:00:00]} e5 {[%emt 0:00:04]} 4. d5 {[%emt 0:00:06]} Ne7 {[%emt 0:00:01]} 5. e4 {[%emt 0:00:26]} Ng6 {[%emt 0:00:03]} 6. g3 {[%emt 0:00:02]} Bc5 {[%emt 0:00:08]} 7. Bg2 {[%emt 0:00:01]} d6 {[%emt 0:00:04]} 8. Nf3 {[%emt 0:00:10]} O-O {[%emt 0:00:27]} 9. O-O {[%emt 0:00:06]} c6 {[%emt 0:00:06]} 10. Bg5 {[%emt 0:02:14]} h6 {[%emt 0:00:25]} 11. Bxf6 {[%emt 0:00:27]} Qxf6 {[%emt 0:00:01]} 12. Na4 {[%emt 0:00:01]} Bb6 {[%emt 0:01:53]} 13. Nxb6 {[%emt 0:00:04]} axb6 {[%emt 0:00:01]} 14. Qb3 {[%emt 0:00:04]} Qd8 {[%emt 0:00:09]} 15. Nd2 {[%emt 0:00:06]} f5 {[%emt 0:00:34]} 16. exf5 {[%emt 0:00:09]} Ne7 {[%emt 0:00:41]} 17. g4 {[%emt 0:01:04]} h5 {[%emt 0:00:43]} 18. h3 {[%emt 0:00:10]} hxg4 {[%emt 0:00:01]} 19. hxg4 {[%emt 0:00:01]} g6 {[%emt 0:00:12]} 20. f4 {[%emt 0:00:32]} gxf5 {[%emt 0:01:54]} 21. fxe5 {[%emt 0:00:13]} dxe5 {[%emt 0:00:33]} 22. Rae1 {[%emt 0:00:01]} Qd6 {[%emt 0:01:09]} 23. Qe3 {[%emt 0:00:17]} cxd5 {[%emt 0:00:39]} 24. cxd5 {[%emt 0:00:19]} Ng6 {[%emt 0:01:41]} 25. Nc4 {[%emt 0:00:13]} Qc5 {[%emt 0:00:06]} 26. Nxb6 {[%emt 0:00:27]} Qxe3+ {[%emt 0:00:02]} 27. Rxe3 {[%emt 0:00:01]} Rxa2 {[%emt 0:00:35]} 28. Rc3 {[%emt 0:00:12]} Rxb2 {[%emt 0:00:06]} 29. Nxc8 {[%emt 0:00:09]} Nf4 {[%emt 0:00:08]} 30. Rxf4 {[%emt 0:00:29]} exf4 {[%emt 0:00:04]} 31. Ne7+ {[%emt 0:00:06]} Kf7 {[%emt 0:00:24]} 32. Nxf5 {[%emt 0:00:04]} Ra8 {[%emt 0:00:33]} 33. Rf3 {[%emt 0:00:56]} Ra1+ {[%emt 0:00:16]} 34. Bf1 {[%emt 0:00:02]} Kf6 {[%emt 0:00:18]} 35. Rxf4 {[%emt 0:00:04]} Ke5 {[%emt 0:00:17]} 36. Rf2 {[%emt 0:00:14]} Rxf2 {[%emt 0:00:17]} 37. Kxf2 {[%emt 0:00:01]} Kxd5 {[%emt 0:01:58]} 38. g5 {[%emt 0:01:27]} Ke5 {[%emt 0:00:23]} 39. Ne3 {[%emt 0:00:13]} Ra2+ {[%emt 0:00:37]} 40. Kf3 {[%emt 0:01:06]} Ra3 {[%emt 0:00:06]} 41. Kf2 {[%emt 0:00:03]} Kf4 {[%emt 0:00:26]} 42. Nc4 {[%emt 0:00:01] Ke5} 1/2-1/2

[Event "RUS-ch Men Rapid 2019"]
[Site "Sochi"]
[Date "2019.10.16"]
[Round "10.23"]
[White "Gutenev, Alexander"]
[Black "Dudin, Gleb"]
[Result "1-0"]
[ECO "B08"]
[WhiteElo "2469"]
[BlackElo "2323"]
[Annotator "ChessBase"]
[PlyCount "67"]
[EventDate "2019.10.15"]
[EventType "swiss"]
[EventCountry "RUS"]
[SourceTitle "playchess.com"]
[Source "ChessBase"]
[SourceQuality "1"]
[TimeControl "900+10"]

1. e4 {[%emt 0:00:00]} g6 {[%emt 0:00:00]} 2. d4 {[%emt 0:00:00]} Bg7 {[%emt 0:00:00]} 3. Nf3 {[%emt 0:00:00]} d6 {[%emt 0:00:00]} 4. Be2 {[%emt 0:00:00]} Nf6 {[%emt 0:00:36]} 5. Nc3 {[%emt 0:00:00]} O-O {[%emt 0:00:03]} 6. O-O {[%emt 0:00:00]} a6 {[%emt 0:00:55]} 7. a4 {[%emt 0:00:02]} Nc6 {[%emt 0:00:46]} 8. d5 {[%emt 0:00:04]} Nb8 {[%emt 0:00:57]} 9. Nd4 {[%emt 0:00:02]} c6 {[%emt 0:00:48]} 10. a5 {[%emt 0:00:28]} Qc7 {[%emt 0:00:35]} 11. Be3 {[%emt 0:00:11]} e5 {[%emt 0:02:07]} 12. dxe6 {[%emt 0:00:06]} fxe6 {[%emt 0:00:02]} 13. Qd2 {[%emt 0:03:09]} d5 {[%emt 0:01:23]} 14. exd5 {[%emt 0:00:02]} exd5 {[%emt 0:00:21]} 15. b4 {[%emt 0:03:19]} Qf7 {[%emt 0:02:02]} 16. h3 {[%emt 0:00:46]} Nbd7 {[%emt 0:00:34]} 17. Nf3 {[%emt 0:02:59]} Re8 {[%emt 0:02:03]} 18. Rab1 {[%emt 0:03:36]} Ne5 {[%emt 0:01:58]} 19. Nxe5 {[%emt 0:00:21]} Rxe5 {[%emt 0:00:02]} 20. Bd3 {[%emt 0:00:32]} Re8 {[%emt 0:01:59]} 21. Rfe1 {[%emt 0:00:13]} Be6 {[%emt 0:00:14]} 22. Bd4 {[%emt 0:00:41]} Rad8 {[%emt 0:00:21]} 23. Ne2 {[%emt 0:01:00]} Bc8 {[%emt 0:00:38]} 24. Ng3 {[%emt 0:00:58]} Ne4 {[%emt 0:00:22]} 25. Bxe4 {[%emt 0:00:27]} dxe4 {[%emt 0:00:02]} 26. c3 {[%emt 0:00:01]} Qc4 {[%emt 0:00:18]} 27. Rbd1 {[%emt 0:00:03]} Bxd4 {[%emt 0:00:13]} 28. cxd4 {[%emt 0:00:01]} Qd5 {[%emt 0:00:10]} 29. Qf4 {[%emt 0:00:11]} Rf8 {[%emt 0:00:09]} 30. Qxe4 {[%emt 0:00:07]} Qb5 {[%emt 0:00:02]} 31. Qe5 {[%emt 0:00:14]} Qxb4 {[%emt 0:00:11]} 32. Ne4 {[%emt 0:00:02]} Rf5 {[%emt 0:00:14]} 33. Nf6+ {[%emt 0:00:13]} Kf7 {[%emt 0:00:04]} 34. Qc7+ {[%emt 0:00:05]} 1-0

[Event "RUS-ch Men Rapid 2019"]
[Site "Sochi"]
[Date "2019.10.16"]
[Round "10.25"]
[White "Belozerov, Andrei"]
[Black "Ozgibcev, Anatoly"]
[Result "1-0"]
[ECO "C60"]
[WhiteElo "2515"]
[BlackElo "2367"]
[Annotator "ChessBase"]
[PlyCount "117"]
[EventDate "2019.10.15"]
[EventType "swiss"]
[EventCountry "RUS"]
[SourceTitle "playchess.com"]
[Source "ChessBase"]
[SourceQuality "1"]
[TimeControl "900+10"]

1. e4 {[%emt 0:00:00]} e5 {[%emt 0:00:00]} 2. Nf3 {[%emt 0:00:00]} Nc6 {[%emt 0:00:00]} 3. Bb5 {[%emt 0:00:00]} Nge7 {[%emt 0:00:00]} 4. c3 {[%emt 0:00:00]} d6 {[%emt 0:00:12]} 5. d4 {[%emt 0:00:01]} Bd7 {[%emt 0:00:02]} 6. O-O {[%emt 0:00:03]} Ng6 {[%emt 0:00:32]} 7. Be3 {[%emt 0:00:26]} Be7 {[%emt 0:00:07]} 8. d5 {[%emt 0:00:13]} Nb8 {[%emt 0:00:03]} 9. Bxd7+ {[%emt 0:00:02]} Nxd7 {[%emt 0:00:02]} 10. c4 {[%emt 0:00:00]} O-O {[%emt 0:00:13]} 11. Nc3 {[%emt 0:00:01]} Nh4 {[%emt 0:00:24]} 12. Nxh4 {[%emt 0:01:04]} Bxh4 {[%emt 0:00:02]} 13. Qg4 {[%emt 0:00:02]} g6 {[%emt 0:00:36]} 14. Bh6 {[%emt 0:00:26]} Re8 {[%emt 0:00:05]} 15. Rac1 {[%emt 0:00:23]} a5 {[%emt 0:00:15]} 16. Rc2 {[%emt 0:00:03]} Be7 {[%emt 0:00:21]} 17. g3 {[%emt 0:00:20]} Nf6 {[%emt 0:01:52]} 18. Qe2 {[%emt 0:00:08]} Qd7 {[%emt 0:01:53]} 19. f3 {[%emt 0:00:27]} Nh5 {[%emt 0:00:46]} 20. Kg2 {[%emt 0:02:06]} Bf8 {[%emt 0:00:38]} 21. Bc1 {[%emt 0:00:08]} Bg7 {[%emt 0:00:21]} 22. Qd1 {[%emt 0:00:24]} Rf8 {[%emt 0:00:14]} 23. Rcf2 {[%emt 0:00:33]} b6 {[%emt 0:00:40]} 24. Ne2 {[%emt 0:03:50]} Rae8 {[%emt 0:03:10]} 25. g4 {[%emt 0:00:11]} Nf6 {[%emt 0:00:14]} 26. Ng3 {[%emt 0:00:03]} Rb8 {[%emt 0:00:40]} 27. a4 {[%emt 0:00:16]} c6 {[%emt 0:00:22]} 28. dxc6 {[%emt 0:00:27]} Qxc6 {[%emt 0:00:01]} 29. b3 {[%emt 0:00:03]} Rfd8 {[%emt 0:00:14]} 30. Be3 {[%emt 0:01:03]} Nd7 {[%emt 0:00:14]} 31. Rd2 {[%emt 0:00:09]} Nc5 {[%emt 0:00:07]} 32. Rd5 {[%emt 0:00:24]} Bf6 {[%emt 0:00:26]} 33. Ne2 {[%emt 0:00:15]} Ne6 {[%emt 0:00:21]} 34. Qd2 {[%emt 0:00:14]} Nc5 {[%emt 0:00:24]} 35. Qc2 {[%emt 0:00:19]} Ne6 {[%emt 0:00:05]} 36. Qd2 {[%emt 0:00:18]} Nc5 {[%emt 0:00:01]} 37. Rb1 {[%emt 0:00:10]} Rb7 {[%emt 0:01:07]} 38. Nc3 {[%emt 0:00:38]} Rbd7 {[%emt 0:00:42]} 39. Bxc5 {[%emt 0:01:09]} bxc5 {[%emt 0:00:29]} 40. Rd1 {[%emt 0:00:13]} Be7 {[%emt 0:00:36]} 41. Nb5 {[%emt 0:00:01]} Qb6 {[%emt 0:00:01]} 42. Qh6 {[%emt 0:00:12]} Bf8 {[%emt 0:00:11]} 43. Qe3 {[%emt 0:00:08]} Be7 {[%emt 0:00:09]} 44. R1d3 {[%emt 0:00:11]} Kg7 {[%emt 0:00:06]} 45. Qd2 {[%emt 0:00:06]} h6 {[%emt 0:00:25]} 46. Rxe5 {[%emt 0:00:24]} Bg5 {[%emt 0:00:16]} 47. Qd1 {[%emt 0:01:42]} dxe5 {[%emt 0:00:15]} 48. Rxd7 {[%emt 0:00:01]} Rxd7 {[%emt 0:00:04]} 49. Qxd7 {[%emt 0:00:02]} Qf6 {[%emt 0:00:18]} 50. Nc7 {[%emt 0:00:08]} Kg8 {[%emt 0:00:47]} 51. Qe8+ {[%emt 0:00:44]} Kg7 {[%emt 0:00:24]} 52. Nd5 {[%emt 0:00:12]} Qd6 {[%emt 0:00:22]} 53. Kf1 {[%emt 0:00:41]} Bd2 {[%emt 0:01:20]} 54. Ke2 {[%emt 0:00:06]} Bb4 {[%emt 0:00:01]} 55. h4 {[%emt 0:00:12]} Qe6 {[%emt 0:00:15]} 56. Ne7 {[%emt 0:00:22]} Qa6 {[%emt 0:00:12]} 57. Qg8+ {[%emt 0:00:11]} Kf6 {[%emt 0:00:02]} 58. Nd5+ {[%emt 0:00:01]} Ke6 {[%emt 0:00:00]} 59. Nc7+ {[%emt 0:00:02] Kd5} 1-0

[Event "RUS-ch Men Rapid 2019"]
[Site "Sochi"]
[Date "2019.10.16"]
[Round "10.29"]
[White "Shkurkin, Andrey"]
[Black "Airapetian, Gor"]
[Result "0-1"]
[ECO "E04"]
[WhiteElo "2209"]
[BlackElo "2436"]
[Annotator "NA"]
[PlyCount "64"]
[EventDate "2019.10.15"]
[EventType "swiss"]
[EventCountry "RUS"]
[SourceTitle "playchess.com"]
[Source "ChessBase"]
[SourceQuality "1"]
[TimeControl "900+10"]

1. d4 {[%emt 0:00:00]} Nf6 {[%emt 0:00:00]} 2. c4 {[%emt 0:00:00]} e6 {[%emt 0:00:00]} 3. g3 {[%emt 0:00:00]} d5 {[%emt 0:00:00]} 4. Bg2 {[%emt 0:00:01]} dxc4 {[%emt 0:00:00]} 5. Nf3 {[%emt 0:00:02]} Bb4+ {[%emt 0:00:03]} 6. Bd2 {[%emt 0:01:24]} a5 {[%emt 0:00:03]} 7. O-O {[%emt 0:00:20]} O-O {[%emt 0:00:09]} 8. Qc2 {[%emt 0:01:06]} Bxd2 {[%emt 0:00:06]} 9. Nbxd2 {[%emt 0:00:08]} b5 {[%emt 0:00:04]} 10. a4 {[%emt 0:00:16]} c6 {[%emt 0:00:02]} 11. b3 {[%emt 0:00:44]} cxb3 {[%emt 0:00:11]} 12. Nxb3 {[%emt 0:00:07]} b4 {[%emt 0:00:02]} 13. Ne5 {[%emt 0:00:42]} Nd5 {[%emt 0:00:17]} 14. Nxc6 {[%emt 0:02:36]} Nxc6 {[%emt 0:00:13]} 15. Qxc6 {[%emt 0:00:02]} Ra6 {[%emt 0:00:02]} 16. Qc4 {[%emt 0:01:36]} Nc3 {[%emt 0:00:11]} 17. e3 {[%emt 0:00:53]} Ra7 {[%emt 0:00:33]} 18. Nc5 {[%emt 0:00:13]} Qd6 {[%emt 0:04:55]} 19. Kh1 {[%emt 0:01:20]} Ba6 {[%emt 0:00:40]} 20. Nxa6 {[%emt 0:00:15]} Qxa6 {[%emt 0:00:22]} 21. Qb3 {[%emt 0:00:24]} Rc7 {[%emt 0:00:34]} 22. Rac1 {[%emt 0:00:22]} Rfc8 {[%emt 0:00:22]} 23. Rc2 {[%emt 0:00:07]} Qc4 {[%emt 0:00:35]} 24. Qxc4 {[%emt 0:01:09]} Rxc4 {[%emt 0:00:02]} 25. Ra1 {[%emt 0:01:17]} b3 {[%emt 0:05:17]} 26. Rb2 {[%emt 0:00:08]} Rb8 {[%emt 0:01:17]} 27. Rc1 {[%emt 0:00:42]} Nxa4 {[%emt 0:00:22]} 28. Rxc4 {[%emt 0:00:25]} Nxb2 {[%emt 0:00:02]} 29. Rc7 {[%emt 0:00:29]} Nd3 {[%emt 0:00:35]} 30. Bf1 {[%emt 0:00:30]} Nxf2+ {[%emt 0:00:03]} 31. Kg2 {[%emt 0:00:02]} b2 {[%emt 0:00:02]} 32. Bd3 {[%emt 0:00:28]} Nxd3 0-1

[Event "RUS-ch Men Rapid 2019"]
[Site "Sochi"]
[Date "2019.10.16"]
[Round "10.31"]
[White "Magomedov, Rashid"]
[Black "Nesterov, Arseniy"]
[Result "0-1"]
[ECO "C77"]
[WhiteElo "2083"]
[BlackElo "2484"]
[Annotator "ChessBase"]
[PlyCount "70"]
[EventDate "2019.10.15"]
[EventType "swiss"]
[EventCountry "RUS"]
[SourceTitle "playchess.com"]
[Source "ChessBase"]
[SourceQuality "1"]
[TimeControl "900+10"]

1. e4 {[%emt 0:00:10]} e5 {[%emt 0:00:00]} 2. Nf3 {[%emt 0:00:03]} Nc6 {[%emt 0:00:00]} 3. Bb5 {[%emt 0:00:01]} a6 {[%emt 0:00:00]} 4. Ba4 {[%emt 0:00:00]} Nf6 {[%emt 0:00:00]} 5. d3 {[%emt 0:00:02]} b5 {[%emt 0:00:00]} 6. Bb3 {[%emt 0:00:01]} Bc5 {[%emt 0:00:00]} 7. c3 {[%emt 0:00:06]} d6 {[%emt 0:00:00]} 8. Nbd2 {[%emt 0:00:03]} O-O {[%emt 0:00:12]} 9. Nf1 {[%emt 0:00:06]} h6 {[%emt 0:00:03]} 10. Be3 {[%emt 0:00:08]} Bxe3 {[%emt 0:00:18]} 11. Nxe3 {[%emt 0:01:54]} Ne7 {[%emt 0:00:04]} 12. Nh4 {[%emt 0:00:49]} d5 {[%emt 0:01:09]} 13. Qf3 {[%emt 0:02:25]} d4 {[%emt 0:00:48]} 14. cxd4 {[%emt 0:00:02]} Qxd4 {[%emt 0:00:08]} 15. O-O {[%emt 0:01:09]} Qxb2 {[%emt 0:01:03]} 16. Rac1 {[%emt 0:00:39]} c6 {[%emt 0:00:46]} 17. Nef5 {[%emt 0:03:41]} Nxf5 {[%emt 0:00:33]} 18. Nxf5 {[%emt 0:00:38]} Bxf5 19. Qxf5 {[%emt 0:00:01]} Rac8 {[%emt 0:01:26]} 20. Rc5 {[%emt 0:00:28]} Qd4 {[%emt 0:00:25]} 21. Rxe5 {[%emt 0:00:29]} Rfe8 {[%emt 0:00:53]} 22. Rc5 {[%emt 0:01:17]} Qxd3 {[%emt 0:00:29]} 23. Bc2 {[%emt 0:02:54]} Qd6 {[%emt 0:00:12]} 24. Rd1 {[%emt 0:00:19]} Qe7 {[%emt 0:00:08]} 25. Rc3 {[%emt 0:01:29]} g6 {[%emt 0:00:01]} 26. Qf4 {[%emt 0:00:09]} Nd5 {[%emt 0:00:46]} 27. Qg3 {[%emt 0:00:15]} Nxc3 {[%emt 0:00:04]} 28. Qxc3 {[%emt 0:00:01]} Qe5 {[%emt 0:00:12]} 29. Qe3 {[%emt 0:00:07]} Rcd8 {[%emt 0:00:11]} 30. Re1 {[%emt 0:00:06]} Kg7 {[%emt 0:00:06]} 31. g3 {[%emt 0:00:19]} c5 {[%emt 0:00:10]} 32. h4 {[%emt 0:00:09]} c4 {[%emt 0:00:02]} 33. Kg2 {[%emt 0:00:07]} Rd7 {[%emt 0:00:36]} 34. Bd1 {[%emt 0:00:19]} Rd3 {[%emt 0:00:12]} 35. Qa7 {[%emt 0:00:09]} Qd4 {[%emt 0:00:06]} 0-1

[Event "RUS-ch Men Rapid 2019"]
[Site "Sochi"]
[Date "2019.10.16"]
[Round "10.32"]
[White "Kabanov, Nikolai"]
[Black "Mnatsakanian, Arsen"]
[Result "1-0"]
[ECO "B07"]
[WhiteElo "2455"]
[BlackElo "2138"]
[Annotator "ChessBase"]
[PlyCount "89"]
[EventDate "2019.10.15"]
[EventType "swiss"]
[EventCountry "RUS"]
[SourceTitle "playchess.com"]
[Source "ChessBase"]
[SourceQuality "1"]
[TimeControl "900+10"]

1. e4 d6 2. d4 Nf6 3. Nc3 g6 4. Be3 Bg7 5. Qd2 c6 6. Nf3 Nbd7 7. Bh6 Bxh6 8. Qxh6 Qa5 9. Bd3 b5 10. O-O b4 11. Ne2 Ba6 12. Bxa6 Qxa6 13. Ng3 Qc4 14. b3 Qb5 15. a3 c5 16. e5 dxe5 17. dxe5 Nd5 18. Qg7 Rf8 19. Rfd1 Nc3 20. Rd3 a5 21. Ng5 c4 22. Re3 O-O-O 23. axb4 axb4 24. Nxf7 cxb3 25. cxb3 Rde8 26. e6 Nf6 27. Nd6+ exd6 28. Ra8+ Qb8 29. Rxb8+ Kxb8 30. e7 Rg8 31. Qxf6 Kc7 32. Qf7 d5 33. Qf4+ Kd7 34. Qxb4 Rc8 35. Rxc3 Rxc3 36. Qxc3 Kxe7 37. Qc7+ Kf6 38. Qd6+ Kg7 39. Qxd5 Re8 40. h3 Rf8 41. Ne4 Rf5 42. Qd4+ Kg8 43. g4 Rf3 44. Ng5 Rf8 45. Qd7 1-0